bitfinex/quotes_ETHUSD_20250906
["timestamp","ask_amount","ask_price","bid_price","bid_amount"]
[1757135415573,7.53291711,4308.9,4308.8,5.569]
[1757135415769,8.43961711,4308.9,4308.8,5.569]
[1757135417557,4.30817792,4308.9,4308.8,5.569]
[1757135417755,5.04071491,4308.9,4308.8,5.569]
[1757135421396,5.04071491,4308.9,4308.8,5.568]
[1757135422299,10.27441491,4308.9,4308.8,5.568]
[1757135423102,9.36771491,4308.9,4308.8,5.568]
[1757135424190,10.27441491,4308.9,4308.8,5.567]
[1757135425278,10.27441491,4308.9,4308.8,1.711]
[1757135425599,10.27441491,4308.9,4308.8,5.567]
[1757135426396,10.27441491,4308.9,4308.8,1.711]
[1757135426563,10.27441491,4308.9,4308.8,4.127]
[1757135426768,10.27441491,4308.9,4308.8,5.567]
[1757135427201,10.27441491,4308.9,4308.8,1.711]
[1757135427367,10.27441491,4308.9,4308.8,5.567]
[1757135427981,9.36771491,4308.9,4308.8,5.567]
[1757135430085,9.07901491,4308.9,4308.8,5.567]
[1757135435917,9.36771491,4308.9,4308.8,5.567]
[1757135436295,9.07901491,4308.9,4308.8,5.567]
[1757135438483,9.07901491,4308.9,4308.8,5.8678]
[1757135439108,8.28701491,4308.9,4308.8,6.792]
[1757135439299,7.55447792,4308.9,4308.8,6.792]
[1757135439620,9.0257,4308.9,4308.8,6.792]
[1757135447090,6.0257,4308.9,4308.8,6.792]
[1757135447284,5.2337,4308.9,4308.8,6.792]
[1757135447715,6.0257,4308.9,4308.8,6.792]
[1757135469703,0.001,4309.4,4308.8,8.0199]
[1757135469995,0.001,4309.4,4308.9,0.9214]
[1757135470185,0.001,4309.4,4309.0,3.851]
[1757135470378,0.001,4309.4,4309.3,0.3058]
[1757135470689,0.001,4309.4,4309.3,4.1568]
[1757135471083,0.001,4309.4,4309.3,4.6254]
[1757135471774,0.001,4309.4,4309.3,5.0782]
[1757135473188,0.001,4309.4,4309.3,4.1568]
[1757135480909,1.0913,4309.4,4309.3,3.851]
[1757135482085,0.793,4309.4,4309.3,3.851]
[1757135485886,0.793,4309.4,4309.3,4.1568]
[1757135486215,0.793,4309.4,4309.3,5.0782]
[1757135496009,0.793,4309.4,4309.3,4.1568]
[1757135498696,0.793,4309.4,4309.3,4.1608]
[1757135500714,0.793,4309.4,4309.3,4.6158]
[1757135502921,0.793,4309.4,4309.3,5.1148]
[1757135507414,0.793,4309.4,4309.3,4.6158]
[1757135508926,0.793,4309.4,4309.3,5.1148]
[1757135509952,0.793,4309.4,4309.3,4.6158]
[1757135512019,0.793,4309.4,4309.3,4.1608]
[1757135513544,0.793,4309.4,4309.3,9.4948]
[1757135514254,0.793,4309.4,4309.3,9.189]
[1757135514462,1.1065,4309.4,4309.3,9.189]
[1757135514819,1.1065,4309.4,4309.3,5.338]
[1757135515034,2.0251,4309.4,4309.3,5.338]
[1757135515258,3.66771,4309.4,4309.3,9.188]
[1757135517262,3.66771,4309.4,4309.3,5.338]
[1757135517641,3.66771,4309.4,4309.3,9.188]
[1757135517845,3.4651,4309.4,4309.3,9.188]
[1757135518243,3.4651,4309.4,4309.3,10.895]
[1757135520658,3.4651,4309.4,4309.3,7.045]
[1757135521062,3.4651,4309.4,4309.3,10.895]
[1757135521331,3.4651,4309.4,4309.3,7.045]
[1757135521584,3.4651,4309.4,4309.3,10.895]
[1757135522436,3.81171,4309.4,4309.3,10.895]
[1757135525879,2.89311,4309.4,4309.3,10.895]
[1757135531564,2.57961,4309.4,4309.3,11.2006]
[1757135531880,2.233,4309.4,4309.3,11.6347]
[1757135533186,2.233,4309.4,4309.3,11.2006]
[1757135533485,2.233,4309.4,4309.3,12.0895]
[1757135543985,2.233,4309.4,4309.3,10.895]
[1757135545391,2.5288,4309.4,4309.3,7.045]
[1757135545595,3.4203,4309.4,4309.3,10.894]
[1757135548273,2.9896,4309.4,4309.3,10.894]
[1757135548490,3.4203,4309.4,4309.3,10.894]
[1757135550107,2.9896,4309.4,4309.3,10.894]
[1757135550697,2.5288,4309.4,4309.3,10.894]
[1757135552401,3.3943,4309.4,4309.3,7.045]
[1757135552703,4.2858,4309.4,4309.3,10.894]
[1757135553402,7.2858,4309.4,4309.3,7.045]
[1757135553603,7.2858,4309.4,4309.3,10.894]
[1757135554183,9.60630865,4309.4,4309.3,10.894]
[1757135554508,7.2858,4309.4,4309.3,10.894]
[1757135559481,4.2858,4309.4,4309.3,10.894]
[1757135560330,9.5195,4309.4,4309.3,10.894]
[1757135563006,9.0888,4309.4,4309.3,10.894]
[1757135564322,9.5616,4309.4,4309.3,10.894]
[1757135567622,8.628,4309.4,4309.3,10.894]
[1757135569717,8.3322,4309.4,4309.3,11.1947]
[1757135574928,8.3322,4309.4,4309.3,10.894]
[1757135576409,8.6248,4309.4,4309.3,10.894]
[1757135577405,8.3322,4309.4,4309.3,10.894]
[1757135578337,8.3322,4309.4,4309.3,11.1947]
[1757135578542,8.3322,4309.4,4309.3,11.6345]
[1757135578701,8.3322,4309.4,4309.3,11.1947]
[1757135580138,8.3322,4309.4,4309.3,10.894]
[1757135580747,8.3322,4309.4,4309.3,5.56]
[1757135581507,6.6747,4309.4,4309.3,6.7745]
[1757135581907,7.4667,4309.4,4309.3,6.7745]
[1757135582344,6.6747,4309.4,4309.3,6.7745]
[1757135583148,7.4667,4309.4,4309.3,6.7745]
[1757135586941,7.4667,4309.4,4309.3,5.8607]
[1757135587341,7.4667,4309.4,4309.3,6.3005]
[1757135591434,7.4667,4309.4,4309.3,6.8115]
[1757135595127,7.4667,4309.4,4309.3,5.56]
[1757135595528,7.4667,4309.4,4309.3,5.8528]
[1757135596056,7.4667,4309.4,4309.3,6.317]
[1757135598134,8.2556,4309.4,4309.3,1.711]
[1757135598336,8.7304,4309.4,4309.3,5.559]
[1757135598756,7.7621,4309.4,4309.3,5.559]
[1757135601461,7.4667,4309.4,4309.3,5.559]
[1757135603772,7.7621,4309.4,4309.3,5.559]
[1757135604460,8.7304,4309.4,4309.3,5.559]
[1757135604660,8.7304,4309.4,4309.3,1.711]
[1757135604862,9.60354,4309.4,4309.3,5.559]
[1757135605179,8.7304,4309.4,4309.3,5.559]
[1757135605553,7.7621,4309.4,4309.3,5.559]
[1757135606959,7.4667,4309.4,4309.3,6.316]
[1757135607560,7.4667,4309.4,4309.3,5.8518]
[1757135610848,7.4667,4309.4,4309.3,6.8026]
[1757135614289,7.4667,4309.4,4309.3,12.1376]
[1757135622097,7.4667,4309.4,4309.3,11.651]
[1757135623590,7.4667,4309.4,4309.3,11.1868]
[1757135625078,7.4667,4309.4,4309.3,11.6574]
[1757135626093,7.4667,4309.4,4309.3,12.1385]
[1757135628271,7.4667,4309.4,4309.3,11.6574]
[1757135628669,7.4667,4309.4,4309.3,12.1385]
[1757135632601,7.4667,4309.4,4309.3,13.42196857]
[1757135635301,7.4667,4309.4,4309.3,12.1385]
[1757135639198,7.4667,4309.4,4309.3,11.6574]
[1757135642693,7.4667,4309.4,4309.3,11.1868]
[1757135645895,7.4667,4309.4,4309.3,10.894]
[1757135646115,7.7657,4309.4,4309.3,10.894]
[1757135646324,8.6551,4309.4,4309.3,10.892]
[1757135646501,9.52071,4309.4,4309.3,10.892]
[1757135649197,4.28701,4309.4,4309.3,10.892]
[1757135649512,3.4214,4309.4,4309.3,10.892]
[1757135652994,3.4214,4309.4,4309.3,7.046]
[1757135653197,3.4214,4309.4,4309.3,10.891]
[1757135657816,2.9701,4309.4,4309.3,10.891]
[1757135658799,2.532,4309.4,4309.3,10.891]
[1757135665399,7.7657,4309.4,4309.3,10.891]
[1757135665707,8.63492,4309.4,4309.3,10.891]
[1757135666107,8.33592,4309.4,4309.3,11.1768]
[1757135667643,8.33592,4309.4,4309.3,10.891]
[1757135668956,8.64992,4309.4,4309.3,10.891]
[1757135675740,8.33592,4309.4,4309.3,10.891]
[1757135675938,7.4667,4309.4,4309.3,11.1768]
[1757135676643,7.4667,4309.4,4309.3,5.8418]
[1757135678754,7.4667,4309.4,4309.3,6.7762]
[1757135679426,7.4667,4309.4,4309.3,6.292]
[1757135680934,7.4667,4309.4,4309.3,5.8418]
[1757135681146,7.4667,4309.4,4309.3,5.556]
[1757135686792,9.02237,4309.4,4309.3,1.711]
[1757135686996,9.48327,4309.4,4309.3,5.556]
[1757135687372,7.7789,4309.4,4309.3,1.711]
[1757135687702,8.7365,4309.4,4309.3,5.555]
[1757135690909,7.7789,4309.4,4309.3,5.555]
[1757135693480,7.4667,4309.4,4309.3,5.555]
[1757135696728,8.2398,4309.4,4309.3,5.555]
[1757135696891,9.61025,4309.4,4309.3,5.555]
[1757135699629,9.61025,4309.4,4309.3,1.711]
[1757135699816,9.61025,4309.4,4309.3,5.555]
[1757135701998,8.65265,4309.4,4309.3,5.555]
[1757135702223,8.34045,4309.4,4309.3,5.555]
[1757135703206,8.65265,4309.4,4309.3,5.555]
[1757135706113,8.34045,4309.4,4309.3,5.555]
[1757135706943,7.4667,4309.4,4309.3,5.555]
[1757135708226,7.7789,4309.4,4309.3,5.555]
[1757135709103,8.2756,4309.4,4309.3,5.555]
[1757135709720,8.723,4309.4,4309.3,5.555]
[1757135710647,7.7789,4309.4,4309.3,5.555]
[1757135710814,8.64935,4309.4,4309.3,5.555]
[1757135711239,8.33715,4309.4,4309.3,5.555]
[1757135713222,11.33715,4309.4,4309.3,5.555]
[1757135713424,6.10345,4309.4,4309.3,5.8634]
[1757135715252,6.10345,4309.4,4309.3,5.555]
[1757135715714,6.10345,4309.4,4309.3,1.711]
[1757135715915,6.10345,4309.4,4309.3,5.555]
[1757135717818,6.39135,4309.4,4309.3,5.555]
[1757135719657,7.31595,4309.4,4309.3,5.555]
[1757135720047,6.39135,4309.4,4309.3,5.555]
[1757135721793,6.39135,4309.4,4309.3,5.554]
[1757135722013,6.10345,4309.4,4309.3,5.554]
[1757135724887,11.33715,4309.4,4309.3,5.554]
[1757135727277,11.33715,4309.4,4309.3,1.711]
[1757135727278,12.54965,4309.4,4309.3,1.711]
[1757135727480,12.54965,4309.4,4308.8,0.004]
[1757135727481,6.11277792,4308.9,4308.8,0.004]
[1757135727680,6.11277792,4308.9,4308.8,5.554]
[1757135727881,7.32527792,4308.9,4308.8,5.554]
[1757135730287,7.32527792,4308.9,4308.8,1.711]
[1757135730601,7.32527792,4308.9,4308.8,5.554]
[1757135730893,13.59321454,4308.9,4308.8,5.554]
[1757135733303,0.792,4308.5,4308.3,0.004]
[1757135733500,3.792,4308.5,4308.4,1.711]
[1757135733712,4.0799,4308.5,4308.4,1.711]
[1757135734216,4.70850978,4308.5,4308.4,1.711]
[1757135734417,4.70850978,4308.5,4308.4,5.554]
[1757135735091,1.70850978,4308.5,4308.4,5.554]
[1757135735286,0.792,4308.6,4308.4,5.554]
[1757135736651,6.0257,4308.5,4308.4,5.554]
[1757135736980,9.0257,4308.5,4308.4,5.554]
[1757135737424,9.0257,4308.5,4308.4,5.8624]
[1757135739478,9.7705,4308.5,4308.4,5.555]
[1757135739676,10.2393,4308.5,4308.4,5.555]
[1757135740098,9.3136,4308.5,4308.4,5.555]
[1757135740302,9.0257,4308.5,4308.4,5.555]
[1757135740711,9.0257,4308.5,4308.4,5.8558]
[1757135742692,5.0252,4308.4,4308.3,0.004]
[1757135742902,5.0252,4308.4,4308.3,1.711]
[1757135743115,5.0252,4308.4,4308.3,2.0118]
[1757135743892,5.0252,4308.4,4308.3,5.8548]
[1757135747302,1.2332,4308.4,4308.3,7.91808]
[1757135747706,2.0252,4308.4,4308.3,7.91808]
[1757135748023,2.0252,4308.4,4308.3,6.7987]
[1757135748605,1.7152,4308.4,4308.3,6.7987]
[1757135758009,1.7152,4308.4,4308.3,6.3281]
[1757135760398,0.8211,4308.3,4308.1,5.8056]
[1757135760700,0.8211,4308.3,4308.2,2.0078]
[1757135761698,0.8211,4308.3,4308.2,5.8508]
[1757135764101,0.8211,4308.3,4308.2,6.733]
[1757135764286,0.8211,4308.3,4308.2,7.9406]
[1757135765910,0.8211,4308.3,4308.2,7.0584]
[1757135767204,0.8211,4308.3,4308.2,5.8508]
[1757135769325,0.9472,4308.2,4308.1,5.339]
[1757135769534,0.9472,4308.2,4308.1,7.219]
[1757135770538,0.9472,4308.2,4308.1,11.062]
[1757135778171,0.9472,4308.2,4308.1,11.022]
[1757135784187,0.9472,4308.2,4308.1,10.885]
[1757135789879,1.7217,4308.2,4308.1,7.042]
[1757135790055,2.1576,4308.2,4308.1,10.884]
[1757135792073,2.1576,4308.2,4308.1,7.042]
[1757135792603,2.1576,4308.2,4308.1,10.884]
[1757135796203,7.3913,4308.2,4308.1,10.884]
[1757135796365,8.11908771,4308.2,4308.1,10.884]
[1757135797820,13.32424271,4308.2,4308.1,7.042]
[1757135798117,13.32424271,4308.2,4308.1,10.884]
[1757135800145,13.28504271,4308.2,4308.1,10.884]
[1757135800696,13.28504271,4308.2,4308.1,1.707]
[1757135800894,13.28504271,4308.2,4308.1,5.549]
[1757135804142,13.28504271,4308.2,4308.1,5.553]
[1757135804446,13.28604271,4308.2,4308.1,5.553]
[1757135804829,7.55090888,4308.1,4308.0,0.004]
[1757135805030,13.20791021,4308.1,4308.0,1.711]
[1757135805230,14.43071021,4308.1,4308.0,1.711]
[1757135806144,13.95301021,4308.1,4308.0,5.15]
[1757135806307,14.43071021,4308.1,4308.0,5.15]
[1757135811644,12.10950133,4308.1,4308.0,5.15]
[1757135811948,14.43071021,4308.1,4308.0,5.15]
[1757135816737,11.17530133,4308.1,4308.0,5.15]
[1757135816926,10.88670133,4308.1,4308.0,5.15]
[1757135817443,13.20791021,4308.1,4308.0,5.15]
[1757135817781,13.66441021,4308.1,4308.0,5.15]
[1757135818574,13.95301021,4308.1,4308.0,5.15]
[1757135818929,14.43071021,4308.1,4308.0,5.15]
[1757135822437,14.43071021,4308.1,4308.0,5.553]
[1757135822962,15.12731137,4308.1,4308.0,5.553]
[1757135823335,15.12831137,4308.1,4308.0,5.553]
[1757135824371,11.30607053,4307.8,4307.7,0.004]
[1757135824661,11.30607053,4307.8,4307.7,3.846]
[1757135824825,12.52887053,4307.8,4307.7,3.846]
[1757135825032,13.225572,4307.8,4307.7,3.846]
[1757135834669,11.29423221,4307.5,4306.6,0.4733]
[1757135834889,11.29423221,4307.5,4307.4,1.712]
[1757135835095,12.04963221,4307.5,4307.4,1.712]
[1757135835290,12.74633368,4307.5,4307.4,1.712]
[1757135835692,12.74633368,4307.5,4307.4,5.555]
[1757135836005,15.00233066,4307.5,4307.4,5.555]
[1757135838015,15.00233066,4307.5,4307.4,1.712]
[1757135838423,15.00233066,4307.5,4307.4,5.555]
[1757135841516,15.00333066,4307.5,4307.4,5.555]
[1757135843441,8.25844781,4307.1,4306.9,0.004]
[1757135843655,11.25844781,4307.1,4307.0,1.712]
[1757135844246,11.95520429,4307.1,4307.0,1.712]
[1757135844663,11.95520429,4307.1,4307.0,5.555]
[1757135848362,9.41990429,4307.1,4307.0,5.555]
[1757135848550,10.81419593,4307.1,4307.0,5.555]
[1757135851927,10.34949593,4307.1,4307.0,5.6704]
[1757135852556,10.34949593,4307.1,4307.0,5.555]
[1757135853995,18.56733907,4307.1,4307.0,1.712]
[1757135854158,8.25055562,4306.9,4306.6,1.712]
[1757135854352,11.25055562,4306.9,4306.8,3.868]
[1757135854784,12.48805562,4306.9,4306.8,3.868]
[1757135860295,3.11396345,4306.7,4306.6,1.712]
[1757135860474,6.11396345,4306.7,4306.6,1.712]
[1757135860674,9.63987142,4306.7,4306.6,1.712]
[1757135861478,9.63987142,4306.7,4306.6,5.555]
[1757135863299,9.14777142,4306.7,4306.6,5.555]
[1757135864278,14.25547142,4306.7,4306.6,5.555]
[1757135868705,14.74757142,4306.7,4306.6,5.555]
[1757135870070,5.0997,4306.5,4306.3,0.004]
[1757135870276,6.74997337,4306.4,4306.3,0.004]
[1757135870589,6.74997337,4306.4,4306.3,1.712]
[1757135871275,6.74997337,4306.4,4306.3,5.555]
[1757135875023,11.84967337,4306.4,4306.3,5.555]
[1757135876980,12.31917337,4306.4,4306.3,5.555]
[1757135877180,9.99704817,4306.4,4306.3,5.555]
[1757135877594,9.52754817,4306.4,4306.3,5.555]
[1757135877793,11.84967337,4306.4,4306.3,5.555]
[1757135878011,12.31917337,4306.4,4306.3,5.555]
[1757135881326,11.6833252,4306.4,4306.3,5.555]
[1757135881484,11.2138252,4306.4,4306.3,5.555]
[1757135883340,12.4718252,4306.4,4306.3,3.847]
[1757135884537,12.4718252,4306.4,4306.3,0.004]
[1757135884704,14.41893082,4306.4,4306.3,0.004]
[1757135884908,14.41893082,4306.4,4306.3,2.997]
[1757135886325,14.41893082,4306.4,4306.3,3.847]
[1757135888539,14.41893082,4306.4,4306.3,0.004]
[1757135888739,14.41893082,4306.4,4306.3,3.847]
[1757135891129,11.17804091,4306.0,4305.9,0.004]
[1757135891306,12.5396737,4306.0,4305.9,1.712]
[1757135891720,13.23661147,4306.0,4305.9,1.712]
[1757135892242,13.23661147,4306.0,4305.9,5.555]
[1757135893434,13.23661147,4306.0,4305.9,5.6704]
[1757135893641,11.87497868,4306.0,4305.9,6.1633]
[1757135897245,11.87497868,4306.0,4305.9,5.6704]
[1757135901240,11.87497868,4306.0,4305.9,5.555]
[1757135901445,11.87497868,4306.0,4305.9,5.6704]
[1757135902258,11.87497868,4306.0,4305.9,5.555]
[1757135904761,12.32237868,4306.0,4305.9,5.555]
[1757135904983,12.61337868,4306.0,4305.9,5.555]
[1757135906666,9.55263777,4306.0,4305.9,5.6704]
[1757135906873,11.87497868,4306.0,4305.9,5.555]
[1757135909403,11.87497868,4306.0,4305.9,5.6704]
[1757135909772,9.55263777,4306.0,4305.9,5.6704]
[1757135909971,11.87497868,4306.0,4305.9,5.6704]
[1757135910392,9.55263777,4306.0,4305.9,5.6704]
[1757135911790,11.87497868,4306.0,4305.9,5.6704]
[1757135911992,9.55263777,4306.0,4305.9,5.6704]
[1757135912405,11.87497868,4306.0,4305.9,5.6704]
[1757135913786,11.87497868,4306.0,4305.9,5.555]
[1757135914387,11.87597868,4306.0,4305.9,5.555]
[1757135914814,13.06517868,4306.0,4305.9,5.555]
[1757135915505,12.61437868,4306.0,4305.9,5.555]
[1757135917146,12.32337868,4306.0,4305.9,5.555]
[1757135917645,11.87597868,4306.0,4305.9,5.555]
[1757135918650,11.87597868,4306.0,4305.9,5.6704]
[1757135919214,11.17904091,4306.0,4305.9,5.6704]
[1757135919434,11.17904091,4306.0,4305.9,5.555]
[1757135920046,8.8567,4306.0,4305.9,5.555]
[1757135922376,8.8567,4306.0,4305.9,5.6704]
[1757135925540,8.8567,4306.0,4305.9,5.555]
[1757135926454,9.2848,4306.0,4305.9,5.555]
[1757135926624,6.803198,4306.0,4305.9,5.555]
[1757135928525,6.375098,4306.0,4305.9,5.555]
[1757135928725,6.375098,4306.0,4305.9,5.6704]
[1757135930533,5.583098,4306.0,4305.9,6.70214]
[1757135930860,6.375098,4306.0,4305.9,7.39892723]
[1757135931061,5.583098,4306.0,4305.9,7.39892723]
[1757135931469,2.583098,4306.0,4305.9,7.39892723]
[1757135931666,3.375098,4306.0,4305.9,7.47102723]
[1757135931886,2.583098,4306.0,4305.9,7.47102723]
[1757135932093,3.375098,4306.0,4305.9,7.47102723]
[1757135932368,2.583098,4306.0,4305.9,7.47102723]
[1757135932666,3.375098,4306.0,4305.9,7.47102723]
[1757135933170,0.001,4306.0,4305.9,7.47102723]
[1757135940247,0.001,4306.0,4305.9,7.39892723]
[1757135940844,0.001,4306.0,4305.9,7.47102723]
[1757135941962,0.001,4306.0,4305.9,9.79342208]
[1757135944361,0.001,4306.0,4305.9,7.47102723]
[1757135944686,0.001,4306.0,4305.9,6.93752723]
[1757135947664,0.2993,4306.0,4305.9,2.97912723]
[1757135947908,2.0192,4306.0,4305.9,2.40878723]
[1757135948111,2.0192,4306.0,4305.9,5.554]
[1757135948400,2.0192,4306.0,4305.9,5.9821]
[1757135948789,2.0192,4306.0,4305.9,2.1401]
[1757135948986,2.0192,4306.0,4305.9,5.554]
[1757135949288,2.22112,4306.0,4305.9,1.712]
[1757135949488,7.54346091,4306.0,4305.9,5.554]
[1757135953273,7.54346091,4306.0,4305.9,8.035602]
[1757135953673,7.54346091,4306.0,4305.9,4.193602]
[1757135953874,7.54346091,4306.0,4305.9,8.036602]
[1757135954574,10.12555891,4306.0,4305.9,8.036602]
[1757135955108,10.12555891,4306.0,4305.9,4.193602]
[1757135955312,10.12555891,4306.0,4305.9,8.036602]
[1757135957189,10.12555891,4306.0,4305.9,4.193602]
[1757135957391,10.12555891,4306.0,4305.9,8.036602]
[1757135958180,10.12555891,4306.0,4305.9,4.193602]
[1757135958402,10.12555891,4306.0,4305.9,8.036602]
[1757135958689,10.12555891,4306.0,4305.9,4.193602]
[1757135959011,10.82255497,4306.0,4305.9,8.036602]
[1757135961331,10.82255497,4306.0,4305.9,4.193602]
[1757135961615,10.82255497,4306.0,4305.9,8.036602]
[1757135963695,10.82255497,4306.0,4305.9,8.037602]
[1757135964533,10.82255497,4306.0,4305.9,4.193602]
[1757135965016,10.82255497,4306.0,4305.9,8.037602]
[1757135969310,10.82255497,4306.0,4305.9,4.193602]
[1757135969512,10.82255497,4306.0,4305.9,8.037602]
[1757135975333,10.82255497,4306.0,4305.9,4.193602]
[1757135975537,10.82255497,4306.0,4305.9,8.037602]
[1757135981037,10.82255497,4306.0,4305.9,4.193602]
[1757135981352,10.82255497,4306.0,4305.9,8.036602]
[1757135986065,10.82255497,4306.0,4305.9,4.193602]
[1757135986271,10.82255497,4306.0,4305.9,8.036602]
[1757135988731,10.82255497,4306.0,4305.8,0.025]
[1757135988933,0.792,4305.6,4305.4,5.343]
[1757135989173,6.11455667,4305.6,4305.5,1.709]
[1757135989557,6.11455667,4305.6,4305.5,1.8244]
[1757135989866,0.792,4305.6,4305.5,1.8244]
[1757135990041,0.792,4305.6,4305.5,5.6674]
[1757135990237,3.11455667,4305.6,4305.5,5.6674]
[1757135993073,3.17805267,4305.6,4305.5,5.6674]
[1757135994050,0.855496,4305.6,4305.5,5.6674]
[1757135994254,3.17805267,4305.6,4305.5,6.1464]
[1757135995056,0.855496,4305.6,4305.5,6.1464]
[1757135996663,6.17805267,4305.6,4305.5,5.6674]
[1757135997392,6.17805267,4305.6,4305.5,5.6714]
[1757136001968,6.95645267,4305.6,4305.5,5.556]
[1757136002505,6.64375267,4305.6,4305.5,5.556]
[1757136003168,6.17805267,4305.6,4305.5,5.556]
[1757136006969,3.855496,4305.6,4305.5,5.6714]
[1757136008386,6.17805267,4305.6,4305.5,5.6714]
[1757136008987,3.855496,4305.6,4305.5,5.6714]
[1757136011914,6.17805267,4305.6,4305.5,5.556]
[1757136012276,3.855496,4305.6,4305.5,5.556]
[1757136012500,3.855496,4305.6,4305.5,5.6714]
[1757136014674,6.17805267,4305.6,4305.5,5.6714]
[1757136014878,6.17805267,4305.6,4305.5,5.556]
[1757136015301,6.64605267,4305.6,4305.5,5.556]
[1757136015474,4.323496,4305.6,4305.5,5.556]
[1757136016201,6.64605267,4305.6,4305.5,5.556]
[1757136018087,6.94225267,4305.6,4305.5,5.556]
[1757136019004,4.619696,4305.6,4305.5,5.556]
[1757136019205,4.323496,4305.6,4305.5,5.556]
[1757136022725,6.64605267,4305.6,4305.5,5.556]
[1757136023105,4.323496,4305.6,4305.5,5.556]
[1757136026430,6.64605267,4305.6,4305.5,5.556]
[1757136026628,0.001,4305.7,4305.5,5.6714]
[1757136027029,0.001,4305.7,4305.5,1.713]
[1757136027030,2.0107,4305.6,4305.5,1.713]
[1757136027330,2.0107,4305.6,4305.5,5.556]
[1757136029635,5.0107,4305.6,4305.5,5.556]
[1757136030720,5.0107,4305.6,4305.5,1.713]
[1757136030926,5.0107,4305.6,4305.5,5.556]
[1757136031330,2.0107,4305.6,4305.5,5.556]
[1757136034503,5.0107,4305.6,4305.5,5.556]
[1757136034708,2.0107,4305.6,4305.5,5.556]
[1757136036444,5.0107,4305.6,4305.5,5.556]
[1757136036630,5.0107,4305.6,4305.5,1.713]
[1757136036803,5.0107,4305.6,4305.5,5.556]
[1757136037639,4.33325667,4305.6,4305.5,5.556]
[1757136038645,2.0107,4305.6,4305.5,5.556]
[1757136039426,7.33325667,4305.6,4305.5,5.556]
[1757136039723,5.0107,4305.6,4305.5,5.556]
[1757136040033,5.97636141,4305.6,4305.5,5.556]
[1757136041516,5.52186141,4305.6,4305.5,5.556]
[1757136043045,3.792,4305.6,4305.5,5.6714]
[1757136043632,3.792,4305.6,4305.5,5.556]
[1757136044634,4.2475,4305.6,4305.5,5.556]
[1757136045156,4.310996,4305.6,4305.5,5.556]
[1757136048553,4.310996,4305.6,4305.5,1.713]
[1757136048757,4.310996,4305.6,4305.5,5.556]
[1757136050952,3.855496,4305.6,4305.5,5.6714]
[1757136051758,3.855496,4305.6,4305.5,5.556]
[1757136052337,3.855496,4305.6,4305.5,5.6714]
[1757136059241,3.855496,4305.6,4305.5,5.556]
[1757136061546,0.855496,4305.6,4305.5,5.556]
[1757136069548,1.310096,4305.6,4305.5,5.556]
[1757136071064,1.604996,4305.6,4305.5,5.556]
[1757136071861,2.097296,4305.6,4305.5,1.713]
[1757136072061,5.5393743,4305.6,4305.5,5.555]
[1757136072802,7.86193097,4305.6,4305.5,1.713]
[1757136073194,8.55892379,4305.6,4305.5,5.555]
[1757136080611,3.76048882,4305.6,4305.5,5.6704]
[1757136080912,3.855496,4305.6,4305.5,5.555]
[1757136081278,4.310096,4305.6,4305.5,5.555]
[1757136082319,4.604996,4305.6,4305.5,5.555]
[1757136082722,3.855496,4305.6,4305.5,5.555]
[1757136083493,4.310096,4305.6,4305.5,5.555]
[1757136083731,6.63265267,4305.6,4305.5,5.555]
[1757136085694,6.92755267,4305.6,4305.5,5.555]
[1757136085895,7.9223457,4305.6,4305.5,5.555]
[1757136086212,8.4146457,4305.6,4305.5,5.555]
[1757136088829,7.9223457,4305.6,4305.5,5.555]
[1757136089028,5.59978903,4305.6,4305.5,5.555]
[1757136089420,7.9223457,4305.6,4305.5,5.555]
[1757136090734,7.6274457,4305.6,4305.5,5.555]
[1757136090932,3.855496,4305.6,4305.5,5.555]
[1757136091135,3.855496,4305.6,4305.5,5.6704]
[1757136092832,3.855496,4305.6,4305.5,5.555]
[1757136094437,4.310096,4305.6,4305.5,5.555]
[1757136096225,4.2466,4305.6,4305.5,5.555]
[1757136098446,4.5415,4305.6,4305.5,5.555]
[1757136100344,5.0093,4305.6,4305.5,5.555]
[1757136100546,4.5415,4305.6,4305.5,5.555]
[1757136102812,7.33185667,4305.6,4305.5,5.555]
[1757136103559,5.0093,4305.6,4305.5,5.555]
[1757136104627,7.33185667,4305.6,4305.5,5.555]
[1757136105630,5.0093,4305.6,4305.5,5.555]
[1757136106721,7.33185667,4305.6,4305.5,5.555]
[1757136107140,5.0093,4305.6,4305.5,5.555]
[1757136107530,5.072796,4305.6,4305.5,5.555]
[1757136108867,7.39535267,4305.6,4305.5,5.555]
[1757136110263,4.604996,4305.6,4305.5,5.555]
[1757136110456,4.310096,4305.6,4305.5,5.555]
[1757136110964,4.613096,4305.6,4305.5,5.555]
[1757136112546,4.310096,4305.6,4305.5,5.555]
[1757136118754,3.855496,4305.6,4305.5,5.6704]
[1757136118990,3.855496,4305.6,4305.5,5.555]
[1757136120124,4.598596,4305.6,4305.5,5.555]
[1757136120307,5.066396,4305.6,4305.5,5.555]
[1757136120455,5.066396,4305.6,4305.5,5.563769]
[1757136120655,8.12794391,4305.6,4305.5,5.563769]